[Event "Paul Keres Memorial-Youth 2020"]
[Site "Parnu"]
[Date "2020.07.30"]
[Round "3.8"]
[White "Mikko, Rondo"]
[Black "Golsta, Madara"]
[Result "0-1"]
[ECO "A35"]
[WhiteElo "1633"]
[BlackElo "1903"]
[Annotator "ChessBase"]
[PlyCount "112"]
[EventDate "2020.07.27"]
[EventType "swiss"]
[EventCountry "EST"]
[SourceTitle "playchess.com"]
[Source "ChessBase"]
[SourceQuality "1"]
[TimeControl "40/5400+30:900+30"]

1. Nf3 {[%emt 0:29:33]} c5 {[%emt 0:29:39]} 2. c4 {[%emt 0:00:35]} Nc6 {[%emt 0:00:17]} 3. Nc3 {[%emt 0:02:08]} g6 {[%emt 0:00:12]} 4. e3 {[%emt 0:00:59]} Nf6 {[%emt 0:01:40]} 5. d4 {[%emt 0:02:15]} cxd4 {[%emt 0:00:46]} 6. Nxd4 {[%emt 0:02:21]} Bg7 {[%emt 0:00:43]} 7. Be2 {[%emt 0:01:28]} O-O {[%emt 0:00:16]} 8. O-O {[%emt 0:02:08]} d6 {[%emt 0:07:24]} 9. b3 {[%emt 0:02:21]} Bd7 {[%emt 0:00:19]} 10. Bb2 {[%emt 0:02:42]} Rc8 {[%emt 0:01:02]} 11. Bf3 {[%emt 0:03:10]} a6 {[%emt 0:06:37]} 12. Qd2 {[%emt 0:03:55]} Qa5 {[%emt 0:04:40]} 13. Rfd1 {[%emt 0:07:09]} Rfe8 {[%emt 0:05:21]} 14. Rac1 {[%emt 0:05:58]} Nxd4 {[%emt 0:05:53]} 15. exd4 {[%emt 0:00:55]} b5 {[%emt 0:00:14]} 16. cxb5 {[%emt 0:05:11]} axb5 {[%emt 0:00:26]} 17. a3 {[%emt 0:01:12]} Bf5 {[%emt 0:02:07]} 18. b4 {[%emt 0:02:51]} Qb6 {[%emt 0:01:34]} 19. h3 {[%emt 0:00:59]} h5 {[%emt 0:02:39]} 20. Nd5 {[%emt 0:04:37]} Nxd5 {[%emt 0:03:34]} 21. Bxd5 {[%emt 0:00:02]} Bd7 {[%emt 0:00:54]} 22. Bb3 {[%emt 0:03:43]} Bc6 {[%emt 0:06:38]} 23. Qf4 {[%emt 0:02:36]} Rf8 {[%emt 0:01:29]} 24. Re1 {[%emt 0:01:49]} Qb7 {[%emt 0:02:20]} 25. Qg5 {[%emt 0:02:26]} e6 {[%emt 0:04:40]} 26. Qg3 {[%emt 0:01:37]} Bd5 {[%emt 0:00:48]} 27. Bc2 {[%emt 0:01:02]} Bh6 {[%emt 0:01:27]} 28. f4 {[%emt 0:00:32]} Bg7 {[%emt 0:01:41]} 29. Qf2 {[%emt 0:01:46]} Rc7 {[%emt 0:02:31]} 30. Bd3 {[%emt 0:00:40]} Rfc8 {[%emt 0:00:14]} 31. Rxc7 {[%emt 0:00:33]} Rxc7 {[%emt 0:00:07]} 32. Kh2 {[%emt 0:01:46]} Qb6 {[%emt 0:00:00]} 33. Kg1 {[%emt 0:00:00]} Rc8 {[%emt 0:00:11]} 34. g3 {[%emt 0:00:09]} Qa6 {[%emt 0:01:10]} 35. Qd2 {[%emt 0:01:06]} Qa4 {[%emt 0:01:07]} 36. Rc1 {[%emt 0:00:38]} Rxc1+ {[%emt 0:01:15]} 37. Qxc1 {[%emt 0:00:04]} Qa7 {[%emt 0:04:14]} 38. Qc3 {[%emt 0:01:23]} Qb6 {[%emt 0:00:52]} 39. Kf2 {[%emt 0:00:46]} e5 {[%emt 0:00:39]} 40. fxe5 {[%emt 0:00:00]} dxe5 {[%emt 0:00:00]} 41. Qc5 {[%emt 0:01:17]} Qf6+ {[%emt 0:00:25]} 42. Ke1 {[%emt 0:00:41]} Qf3 {[%emt 0:00:33]} 43. Qxb5 {[%emt 0:01:17]} Bb3 {[%emt 0:04:23]} 44. Kd2 {[%emt 0:02:47]} Qd1+ {[%emt 0:00:40]} 45. Ke3 {[%emt 0:00:33]} exd4+ {[%emt 0:02:02]} 46. Ke4 {[%emt 0:00:58]} f5+ {[%emt 0:00:53]} 47. Kf4 {[%emt 0:00:16]} Qd2+ {[%emt 0:00:12]} 48. Kf3 {[%emt 0:00:13]} Bd1+ {[%emt 0:00:29]} 49. Be2 {[%emt 0:00:19]} Qe3+ {[%emt 0:00:19]} 50. Kg2 {[%emt 0:00:14]} Bxe2 {[%emt 0:00:37]} 51. Qb8+ {[%emt 0:00:36]} Kh7 {[%emt 0:00:08]} 52. Qf4 {[%emt 0:00:25]} Qxf4 {[%emt 0:01:40]} 53. gxf4 {[%emt 0:00:07]} Bb5 {[%emt 0:00:05]} 54. Bxd4 {[%emt 0:00:14]} Bxd4 {[%emt 0:00:06]} 55. h4 {[%emt 0:00:12]} Bb2 {[%emt 0:00:07]} 56. a4 {[%emt 0:00:10]} Bxa4 {[%emt 0:00:05]} 0-1

[Event "Paul Keres Memorial-Youth 2020"]
[Site "Parnu"]
[Date "2020.07.30"]
[Round "4.6"]
[White "Blokhin, Sofia"]
[Black "Pedoson, Georg Aleksander"]
[Result "0-1"]
[ECO "B11"]
[WhiteElo "1786"]
[BlackElo "2189"]
[Annotator "ChessBase"]
[PlyCount "102"]
[EventDate "2020.07.27"]
[EventType "swiss"]
[EventCountry "EST"]
[SourceTitle "playchess.com"]
[Source "ChessBase"]
[SourceQuality "1"]
[TimeControl "40/5400+30:900+30"]

1. e4 {[%emt 0:29:31]} c6 {[%emt 0:32:24]} 2. Nf3 {[%emt 0:00:08]} d5 {[%emt 0:00:12]} 3. Nc3 {[%emt 0:00:07]} Bg4 {[%emt 0:04:05]} 4. h3 {[%emt 0:00:15]} Bxf3 {[%emt 0:00:09]} 5. Qxf3 {[%emt 0:00:07]} e6 {[%emt 0:00:23]} 6. d4 {[%emt 0:00:19]} dxe4 {[%emt 0:05:07]} 7. Nxe4 {[%emt 0:00:37]} Nd7 {[%emt 0:01:21]} 8. Bg5 {[%emt 0:04:20]} Ngf6 {[%emt 0:00:28]} 9. Nxf6+ {[%emt 0:02:07]} Nxf6 {[%emt 0:00:09]} 10. Bxf6 {[%emt 0:00:58]} Qxf6 {[%emt 0:00:05]} 11. Qxf6 {[%emt 0:00:50]} gxf6 {[%emt 0:00:04]} 12. O-O-O {[%emt 0:02:29]} O-O-O {[%emt 0:01:46]} 13. Bc4 {[%emt 0:04:17]} Rg8 {[%emt 0:16:59]} 14. g4 {[%emt 0:05:50]} h5 {[%emt 0:00:30]} 15. f3 {[%emt 0:02:30]} Bh6+ {[%emt 0:05:11]} 16. Kb1 {[%emt 0:00:11]} h4 {[%emt 0:01:05]} 17. a3 {[%emt 0:03:06]} Rd7 {[%emt 0:01:01]} 18. c3 {[%emt 0:02:30]} Rgd8 {[%emt 0:02:03]} 19. Bb3 {[%emt 0:00:40]} Kc7 {[%emt 0:02:44]} 20. Bc2 {[%emt 0:03:20]} Bf4 {[%emt 0:05:41]} 21. Rhf1 {[%emt 0:02:02]} Kd6 {[%emt 0:02:14]} 22. Rfe1 {[%emt 0:01:21]} Ke7 {[%emt 0:02:12]} 23. Rf1 {[%emt 0:02:06]} Kf8 {[%emt 0:00:11]} 24. Rfe1 {[%emt 0:01:42]} Kg7 {[%emt 0:00:12]} 25. Rf1 {[%emt 0:01:09]} Kh6 {[%emt 0:00:51]} 26. Rfe1 {[%emt 0:02:06]} Kg5 {[%emt 0:00:49]} 27. Rg1 {[%emt 0:02:40]} e5 {[%emt 0:00:31]} 28. dxe5 {[%emt 0:02:13]} Rxd1+ {[%emt 0:00:08]} 29. Rxd1 {[%emt 0:05:06]} Rxd1+ {[%emt 0:00:06]} 30. Bxd1 {[%emt 0:00:03]} Bxe5 {[%emt 0:02:58]} 31. Kc2 {[%emt 0:10:22]} Kf4 {[%emt 0:00:44]} 32. Kd2 {[%emt 0:01:53]} Kg3 {[%emt 0:00:51]} 33. Ke2 {[%emt 0:01:53]} Bc7 {[%emt 0:01:21]} 34. Kf1 {[%emt 0:04:40]} Bb6 {[%emt 0:00:10]} 35. f4 {[%emt 0:01:04]} Kxh3 {[%emt 0:00:49]} 36. Bf3 {[%emt 0:01:31]} Kg3 {[%emt 0:00:24]} 37. Bh1 {[%emt 0:01:14]} Kxf4 {[%emt 0:00:35]} 38. Kg2 {[%emt 0:00:18]} Kxg4 {[%emt 0:00:15]} 39. c4 {[%emt 0:00:36]} f5 {[%emt 0:00:31]} 40. b4 {[%emt 0:00:00]} Bd4 {[%emt 0:00:00]} 41. Kh2 {[%emt 0:00:41]} f4 {[%emt 0:00:20]} 42. Bg2 {[%emt 0:00:30]} Bf2 {[%emt 0:02:27]} 43. Bh3+ {[%emt 0:00:24]} Kf3 {[%emt 0:00:05]} 44. b5 {[%emt 0:01:17]} Bg3+ {[%emt 0:01:11]} 45. Kh1 {[%emt 0:00:16]} Ke2 {[%emt 0:00:27]} 46. Bg4+ {[%emt 0:00:58]} f3 {[%emt 0:00:16]} 47. bxc6 {[%emt 0:00:12]} bxc6 {[%emt 0:00:03]} 48. a4 {[%emt 0:00:36]} f5 {[%emt 0:00:29]} 49. Bh5 {[%emt 0:00:17]} Ke3 {[%emt 0:00:08]} 50. Kg1 {[%emt 0:00:46]} h3 {[%emt 0:00:10]} 51. Be8 {[%emt 0:00:30]} h2+ {[%emt 0:00:08]} 0-1

[Event "Paul Keres Memorial-Youth 2020"]
[Site "Parnu"]
[Date "2020.07.30"]
[Round "4.7"]
[White "Golsta, Madara"]
[Black "Kokk, Karl Mattias"]
[Result "1-0"]
[ECO "B76"]
[WhiteElo "1903"]
[BlackElo "1492"]
[Annotator "ChessBase"]
[PlyCount "119"]
[EventDate "2020.07.27"]
[EventType "swiss"]
[EventCountry "EST"]
[SourceTitle "playchess.com"]
[Source "ChessBase"]
[SourceQuality "1"]
[TimeControl "40/5400+30:900+30"]

1. e4 {[%emt 0:29:32]} c5 {[%emt 0:30:41]} 2. Nf3 {[%emt 0:00:10]} d6 {[%emt 0:00:18]} 3. d4 {[%emt 0:00:09]} cxd4 {[%emt 0:00:22]} 4. Nxd4 {[%emt 0:00:05]} Nf6 {[%emt 0:00:32]} 5. Nc3 {[%emt 0:00:09]} g6 {[%emt 0:00:36]} 6. Be3 {[%emt 0:00:19]} Bg7 {[%emt 0:01:17]} 7. f3 {[%emt 0:00:09]} Nc6 {[%emt 0:00:31]} 8. Qd2 {[%emt 0:00:14]} O-O {[%emt 0:01:03]} 9. g4 {[%emt 0:00:08]} h5 {[%emt 0:08:34]} 10. gxh5 {[%emt 0:00:26]} Nxh5 {[%emt 0:00:15]} 11. O-O-O {[%emt 0:00:25]} Bd7 {[%emt 0:03:00]} 12. Rg1 {[%emt 0:00:39]} Ne5 {[%emt 0:08:52]} 13. Be2 {[%emt 0:04:47]} Rc8 {[%emt 0:01:41]} 14. f4 {[%emt 0:05:48]} Nc4 {[%emt 0:01:51]} 15. Bxc4 {[%emt 0:00:10]} Rxc4 {[%emt 0:00:11]} 16. f5 {[%emt 0:00:38]} Kh7 {[%emt 0:02:28]} 17. Qe2 {[%emt 0:08:01]} Rxc3 {[%emt 0:20:21]} 18. bxc3 {[%emt 0:02:04]} Qa5 {[%emt 0:00:40]} 19. Nb3 {[%emt 0:24:44]} Qxc3 {[%emt 0:12:43]} 20. Bd4 {[%emt 0:00:57]} Bxd4 {[%emt 0:00:36]} 21. Rxd4 {[%emt 0:00:28]} a5 {[%emt 0:01:16]} 22. Qd2 {[%emt 0:13:33]} Qxd2+ {[%emt 0:01:42]} 23. Nxd2 {[%emt 0:00:11]} gxf5 {[%emt 0:00:30]} 24. exf5 {[%emt 0:00:16]} Bxf5 {[%emt 0:00:14]} 25. Rg5 {[%emt 0:00:46]} Ng7 {[%emt 0:01:06]} 26. Rh4+ {[%emt 0:00:52]} Kg8 {[%emt 0:00:04]} 27. Rf4 {[%emt 0:01:09]} e6 {[%emt 0:00:19]} 28. h4 {[%emt 0:00:43]} f6 {[%emt 0:00:37]} 29. Rg3 {[%emt 0:00:07]} Kf7 {[%emt 0:00:20]} 30. Rc4 {[%emt 0:00:14]} Ne8 {[%emt 0:00:56]} 31. Rb3 {[%emt 0:00:16]} Kg6 {[%emt 0:00:40]} 32. Rxb7 {[%emt 0:00:29]} d5 {[%emt 0:00:15]} 33. Ra4 {[%emt 0:00:56]} Nd6 {[%emt 0:00:48]} 34. Rb6 {[%emt 0:00:50]} Nc8 {[%emt 0:00:48]} 35. Rb8 {[%emt 0:00:15]} e5 {[%emt 0:00:45]} 36. Rxa5 {[%emt 0:00:19]} Rh8 {[%emt 0:00:16]} 37. Rc5 {[%emt 0:03:55]} Rxh4 {[%emt 0:00:44]} 38. Rcxc8 {[%emt 0:00:30]} Bxc8 {[%emt 0:00:05]} 39. Rxc8 {[%emt 0:00:04]} Kf5 {[%emt 0:00:20]} 40. Rd8 {[%emt 0:00:00]} Ra4 {[%emt 0:00:00]} 41. Rxd5 {[%emt 0:06:11]} Ke6 {[%emt 0:02:54]} 42. Rd3 {[%emt 0:01:48]} Rxa2 {[%emt 0:00:33]} 43. c4 {[%emt 0:00:24]} f5 {[%emt 0:01:52]} 44. c5 {[%emt 0:01:09]} Ra5 {[%emt 0:02:16]} 45. Nb3 {[%emt 0:01:11]} Ra6 {[%emt 0:00:42]} 46. Kd2 {[%emt 0:03:06]} Rc6 {[%emt 0:03:00]} 47. Kc3 {[%emt 0:01:14]} f4 {[%emt 0:02:59]} 48. Kc4 {[%emt 0:00:39]} Rc8 {[%emt 0:03:36]} 49. Rd6+ {[%emt 0:01:35]} Kf5 {[%emt 0:00:25]} 50. Nd2 {[%emt 0:00:33]} Kg4 {[%emt 0:01:05]} 51. Rf6 {[%emt 0:00:37]} Rd8 {[%emt 0:00:31]} 52. Kc3 {[%emt 0:00:36]} Kg5 {[%emt 0:01:10]} 53. Ne4+ {[%emt 0:00:40]} Kg4 {[%emt 0:00:42]} 54. c6 {[%emt 0:00:32]} Kf3 {[%emt 0:00:21]} 55. Nd6 {[%emt 0:01:30]} Ra8 {[%emt 0:01:03]} 56. c7 {[%emt 0:00:14]} e4 {[%emt 0:00:06]} 57. c8=Q {[%emt 0:00:22]} Rxc8+ {[%emt 0:00:12]} 58. Nxc8 {[%emt 0:00:02]} Ke3 {[%emt 0:00:48]} 59. Nd6 {[%emt 0:01:47]} Kf3 {[%emt 0:00:26]} 60. Kd4 {[%emt 0:01:28]} 1-0

[Event "Paul Keres Memorial-Youth 2020"]
[Site "Parnu"]
[Date "2020.07.30"]
[Round "4.8"]
[White "Aga, Rihard"]
[Black "Andrijashkin, Deniss"]
[Result "0-1"]
[ECO "E83"]
[WhiteElo "2022"]
[BlackElo "1850"]
[Annotator "ChessBase"]
[PlyCount "64"]
[EventDate "2020.07.27"]
[EventType "swiss"]
[EventCountry "EST"]
[SourceTitle "playchess.com"]
[Source "ChessBase"]
[SourceQuality "1"]
[TimeControl "40/5400+30:900+30"]

1. d4 {[%emt 0:29:34]} Nf6 {[%emt 0:30:29]} 2. c4 {[%emt 0:00:07]} g6 {[%emt 0:00:02]} 3. Nc3 {[%emt 0:00:06]} Bg7 {[%emt 0:00:03]} 4. e4 {[%emt 0:00:07]} d6 {[%emt 0:00:04]} 5. f3 {[%emt 0:00:05]} O-O {[%emt 0:00:05]} 6. Be3 {[%emt 0:00:05]} Nc6 {[%emt 0:00:02]} 7. Qd2 {[%emt 0:00:13]} a6 {[%emt 0:00:03]} 8. Nge2 {[%emt 0:00:39]} Na5 {[%emt 0:01:03]} 9. Nc1 {[%emt 0:00:43]} Nd7 {[%emt 0:00:19]} 10. Nb3 {[%emt 0:01:19]} c5 {[%emt 0:02:37]} 11. Be2 {[%emt 0:08:44]} Nxb3 {[%emt 0:21:32]} 12. axb3 {[%emt 0:00:07]} cxd4 {[%emt 0:01:28]} 13. Bxd4 {[%emt 0:00:07]} Bxd4 {[%emt 0:00:03]} 14. Qxd4 {[%emt 0:00:10]} Nc5 {[%emt 0:00:07]} 15. Ra3 {[%emt 0:01:09]} e5 {[%emt 0:00:06]} 16. Qd2 {[%emt 0:01:18]} Ne6 {[%emt 0:00:27]} 17. Nb5 {[%emt 0:03:13]} Bd7 {[%emt 0:22:25]} 18. Nxd6 {[%emt 0:02:08]} Qc7 {[%emt 0:03:13]} 19. b4 {[%emt 0:00:47]} a5 {[%emt 0:00:52]} 20. Rd3 {[%emt 0:15:55]} Nd4 {[%emt 0:02:31]} 21. Rxd4 {[%emt 0:00:15]} exd4 {[%emt 0:00:05]} 22. Qxd4 {[%emt 0:00:10]} axb4 {[%emt 0:01:16]} 23. O-O {[%emt 0:00:41]} b6 {[%emt 0:02:28]} 24. Qf6 {[%emt 0:01:22]} Qc5+ {[%emt 0:01:31]} 25. Kh1 {[%emt 0:00:09]} Qe3 {[%emt 0:00:49]} 26. Qh4 {[%emt 0:06:00]} Qxe2 {[%emt 0:00:21]} 27. Re1 {[%emt 0:00:05]} Qxb2 {[%emt 0:00:58]} 28. e5 {[%emt 0:00:56]} Ra1 {[%emt 0:00:36]} 29. Ne4 {[%emt 0:00:24]} Rxe1+ {[%emt 0:00:03]} 30. Qxe1 {[%emt 0:00:05]} Qxe5 {[%emt 0:00:23]} 31. Qh4 {[%emt 0:00:03]} Qa1+ {[%emt 0:00:07]} 32. Qe1 {[%emt 0:00:04]} Qxe1# {[%emt 0:00:02]} 0-1

[Event "Paul Keres Memorial-Youth 2020"]
[Site "Parnu"]
[Date "2020.07.30"]
[Round "4.9"]
[White "Raag, Ardi"]
[Black "Olde, Karl Erik"]
[Result "1-0"]
[ECO "B09"]
[WhiteElo "1729"]
[BlackElo "1751"]
[Annotator "NA"]
[PlyCount "59"]
[EventDate "2020.07.27"]
[EventType "swiss"]
[EventCountry "EST"]
[SourceTitle "playchess.com"]
[Source "ChessBase"]
[SourceQuality "1"]
[TimeControl "40/5400+30:900+30"]

1. e4 {[%emt 0:29:32]} d6 {[%emt 0:30:21]} 2. d4 {[%emt 0:00:07]} Nf6 {[%emt 0:00:09]} 3. Nc3 {[%emt 0:00:07]} g6 {[%emt 0:00:06]} 4. f4 {[%emt 0:00:06]} Bg7 {[%emt 0:01:05]} 5. Nf3 {[%emt 0:00:09]} O-O {[%emt 0:01:20]} 6. a3 {[%emt 0:00:29]} c6 {[%emt 0:02:06]} 7. Be3 {[%emt 0:00:52]} Qc7 {[%emt 0:02:15]} 8. h3 {[%emt 0:05:59]} b5 {[%emt 0:04:53]} 9. Qd2 {[%emt 0:07:09]} Nbd7 {[%emt 0:08:00]} 10. g4 {[%emt 0:03:58]} a5 {[%emt 0:03:52]} 11. e5 {[%emt 0:08:30]} Ne8 {[%emt 0:06:44]} 12. h4 {[%emt 0:03:45]} Bb7 {[%emt 0:03:29]} 13. Qf2 {[%emt 0:02:01]} b4 {[%emt 0:03:12]} 14. Nd1 {[%emt 0:06:55]} c5 {[%emt 0:01:47]} 15. c3 {[%emt 0:05:58]} Qc6 {[%emt 0:09:51]} 16. Rh3 {[%emt 0:00:36]} Nc7 {[%emt 0:00:58]} 17. h5 {[%emt 0:03:14]} f5 {[%emt 0:05:15]} 18. hxg6 {[%emt 0:02:25]} hxg6 {[%emt 0:01:25]} 19. Ng5 {[%emt 0:03:01]} Rfd8 {[%emt 0:02:43]} 20. gxf5 {[%emt 0:03:13]} gxf5 {[%emt 0:01:10]} 21. Qh4 {[%emt 0:02:30]} Nf8 {[%emt 0:00:03]} 22. Nh7 {[%emt 0:03:34]} Qe8 {[%emt 0:02:25]} 23. Nxf8 {[%emt 0:00:55]} Kxf8 {[%emt 0:00:01]} 24. Qh7 {[%emt 0:01:04]} Qf7 {[%emt 0:01:00]} 25. Rg3 {[%emt 0:00:11]} cxd4 {[%emt 0:01:19]} 26. cxd4 {[%emt 0:00:58]} Ne6 {[%emt 0:01:16]} 27. Bc4 {[%emt 0:00:53]} Bc8 {[%emt 0:02:05]} 28. d5 {[%emt 0:00:29]} Nc5 {[%emt 0:01:28]} 29. e6 {[%emt 0:00:15]} Qf6 {[%emt 0:00:03]} 30. Rg6 {[%emt 0:00:14]} 1-0

[Event "Paul Keres Memorial-Youth 2020"]
[Site "Parnu"]
[Date "2020.07.30"]
[Round "5.6"]
[White "Pedoson, Georg Aleksander"]
[Black "Golsta, Madara"]
[Result "1-0"]
[ECO "D80"]
[WhiteElo "2189"]
[BlackElo "1903"]
[Annotator "ChessBase"]
[PlyCount "117"]
[EventDate "2020.07.27"]
[EventType "swiss"]
[EventCountry "EST"]
[SourceTitle "playchess.com"]
[Source "ChessBase"]
[SourceQuality "1"]
[TimeControl "40/5400+30:900+30"]

1. d4 {[%emt 0:29:33]} Nf6 {[%emt 0:29:38]} 2. c4 {[%emt 0:04:10]} g6 {[%emt 0:00:15]} 3. Nc3 {[%emt 0:00:04]} d5 {[%emt 0:00:17]} 4. Bg5 {[%emt 0:00:12]} Bg7 {[%emt 0:04:10]} 5. Bxf6 {[%emt 0:01:45]} Bxf6 {[%emt 0:00:07]} 6. cxd5 {[%emt 0:06:33]} c6 {[%emt 0:04:55]} 7. dxc6 {[%emt 0:03:00]} Nxc6 {[%emt 0:02:28]} 8. e3 {[%emt 0:00:32]} O-O {[%emt 0:00:58]} 9. Nf3 {[%emt 0:01:50]} b6 {[%emt 0:04:06]} 10. Be2 {[%emt 0:02:34]} Bb7 {[%emt 0:00:16]} 11. O-O {[%emt 0:00:07]} Rc8 {[%emt 0:02:36]} 12. Qa4 {[%emt 0:03:20]} Rc7 {[%emt 0:16:02]} 13. Rac1 {[%emt 0:01:28]} Rd7 {[%emt 0:00:36]} 14. Bb5 {[%emt 0:05:24]} Rc7 {[%emt 0:00:11]} 15. Ne4 {[%emt 0:00:22]} Nb8 {[%emt 0:04:03]} 16. Nxf6+ {[%emt 0:03:57]} exf6 {[%emt 0:00:07]} 17. Be2 {[%emt 0:00:15]} a5 {[%emt 0:01:15]} 18. h3 {[%emt 0:01:49]} Nc6 {[%emt 0:03:54]} 19. Rc3 {[%emt 0:02:03]} Ne7 {[%emt 0:00:11]} 20. Rfc1 {[%emt 0:02:14]} Rxc3 {[%emt 0:00:32]} 21. bxc3 {[%emt 0:01:32]} Qa8 {[%emt 0:02:41]} 22. c4 {[%emt 0:02:59]} Ba6 {[%emt 0:02:55]} 23. Rb1 {[%emt 0:00:43]} Qa7 {[%emt 0:00:26]} 24. Nd2 {[%emt 0:01:00]} Rc8 {[%emt 0:01:00]} 25. Ne4 {[%emt 0:01:28]} f5 {[%emt 0:01:08]} 26. Nd6 {[%emt 0:03:51]} Rd8 {[%emt 0:00:26]} 27. Nb5 {[%emt 0:00:10]} Qd7 {[%emt 0:00:15]} 28. Nc3 {[%emt 0:01:43]} Qc7 {[%emt 0:00:54]} 29. Qb3 {[%emt 0:00:18]} Rc8 {[%emt 0:00:20]} 30. Nb5 {[%emt 0:05:26]} Qd7 {[%emt 0:01:08]} 31. d5 {[%emt 0:02:12]} Rc5 {[%emt 0:08:25]} 32. Nc3 {[%emt 0:00:53]} Nc8 {[%emt 0:01:45]} 33. Na4 {[%emt 0:00:41]} Rc7 {[%emt 0:00:11]} 34. Rd1 {[%emt 0:01:14]} Qd6 {[%emt 0:00:44]} 35. c5 {[%emt 0:01:00]} bxc5 {[%emt 0:00:11]} 36. Bxa6 {[%emt 0:00:04]} Qxa6 {[%emt 0:00:05]} 37. d6 {[%emt 0:00:34]} Nxd6 {[%emt 0:00:25]} 38. Qb8+ {[%emt 0:00:05]} Qc8 {[%emt 0:00:08]} 39. Qb6 {[%emt 0:00:34]} Ne4 {[%emt 0:01:06]} 40. f3 {[%emt 0:00:00]} Ng5 {[%emt 0:00:00]} 41. Nxc5 {[%emt 0:01:56]} Kg7 {[%emt 0:04:28]} 42. Nb3 {[%emt 0:05:03]} a4 {[%emt 0:05:45]} 43. Qd4+ {[%emt 0:00:10]} f6 {[%emt 0:00:47]} 44. Qxa4 {[%emt 0:00:05]} Qe6 {[%emt 0:01:32]} 45. Qd4 {[%emt 0:03:37]} Nf7 {[%emt 0:01:31]} 46. Nc5 {[%emt 0:02:59]} Qb6 {[%emt 0:01:49]} 47. Rc1 {[%emt 0:00:24]} Re7 {[%emt 0:02:40]} 48. a4 {[%emt 0:00:23]} Nd8 {[%emt 0:05:17]} 49. Ra1 {[%emt 0:03:18]} f4 {[%emt 0:00:37]} 50. exf4 {[%emt 0:02:54]} Nb7 {[%emt 0:01:22]} 51. Rc1 {[%emt 0:00:12]} Kh6 {[%emt 0:01:03]} 52. Qf2 {[%emt 0:00:19]} Rc7 {[%emt 0:00:21]} 53. Nd3 {[%emt 0:00:25]} Rxc1+ {[%emt 0:00:39]} 54. Nxc1 {[%emt 0:00:04]} Qc6 {[%emt 0:00:12]} 55. Qd2 {[%emt 0:01:41]} Qxa4 {[%emt 0:00:25]} 56. Ne2 {[%emt 0:01:08]} Qa7+ {[%emt 0:00:57]} 57. Kh2 {[%emt 0:00:23]} Qf2 {[%emt 0:00:53]} 58. f5+ {[%emt 0:00:59]} g5 {[%emt 0:00:06]} 59. Qb2 {[%emt 0:00:21]} 1-0

[Event "Paul Keres Memorial-Youth 2020"]
[Site "Parnu"]
[Date "2020.07.30"]
[Round "5.7"]
[White "Andrijashkin, Deniss"]
[Black "Blokhin, Sofia"]
[Result "1/2-1/2"]
[ECO "C00"]
[WhiteElo "1850"]
[BlackElo "1786"]
[Annotator "NA"]
[PlyCount "47"]
[EventDate "2020.07.27"]
[EventType "swiss"]
[EventCountry "EST"]
[SourceTitle "playchess.com"]
[Source "ChessBase"]
[SourceQuality "1"]
[TimeControl "40/5400+30:900+30"]

1. e4 {[%emt 0:30:49]} c5 {[%emt 0:29:35]} 2. Nf3 {[%emt 0:00:05]} e6 {[%emt 0:00:07]} 3. g3 {[%emt 0:00:09]} Nc6 {[%emt 0:00:31]} 4. Bg2 {[%emt 0:00:07]} Nf6 {[%emt 0:01:46]} 5. Qe2 {[%emt 0:00:17]} Be7 {[%emt 0:01:35]} 6. O-O {[%emt 0:01:22]} d5 {[%emt 0:03:18]} 7. d3 {[%emt 0:09:02]} O-O {[%emt 0:02:35]} 8. e5 {[%emt 0:00:18]} Nd7 {[%emt 0:00:55]} 9. c4 {[%emt 0:03:00]} d4 {[%emt 0:03:02]} 10. Re1 {[%emt 0:01:24]} a6 {[%emt 0:01:41]} 11. h4 {[%emt 0:06:00]} Rb8 {[%emt 0:04:54]} 12. Bf4 {[%emt 0:00:27]} b5 {[%emt 0:10:02]} 13. b3 {[%emt 0:10:47]} Bb7 {[%emt 0:03:02]} 14. Nbd2 {[%emt 0:00:40]} Nb4 {[%emt 0:05:32]} 15. Rec1 {[%emt 0:01:48]} bxc4 {[%emt 0:00:51]} 16. bxc4 {[%emt 0:00:24]} Nb6 {[%emt 0:01:21]} 17. a3 {[%emt 0:01:28]} Nc6 {[%emt 0:00:18]} 18. Ne4 {[%emt 0:00:46]} Na5 {[%emt 0:01:21]} 19. Nfg5 {[%emt 0:07:56]} Bxe4 {[%emt 0:08:30]} 20. Bxe4 {[%emt 0:04:04]} Bxg5 {[%emt 0:00:13]} 21. hxg5 {[%emt 0:06:58]} g6 {[%emt 0:02:39]} 22. Kg2 {[%emt 0:01:44]} Nb3 {[%emt 0:01:03]} 23. Rh1 {[%emt 0:00:21]} Nxa1 {[%emt 0:01:55]} 24. Rxh7 {[%emt 0:07:11]} 1/2-1/2

[Event "Paul Keres Memorial-Youth 2020"]
[Site "Parnu"]
[Date "2020.07.30"]
[Round "5.8"]
[White "Mikko, Rondo"]
[Black "Raag, Ardi"]
[Result "0-1"]
[ECO "C47"]
[WhiteElo "1633"]
[BlackElo "1729"]
[Annotator "NA"]
[PlyCount "97"]
[EventDate "2020.07.27"]
[EventType "swiss"]
[EventCountry "EST"]
[SourceTitle "playchess.com"]
[Source "ChessBase"]
[SourceQuality "1"]
[TimeControl "40/5400+30:900+30"]

1. e4 {[%emt 0:30:16]} e5 {[%emt 0:29:39]} 2. Nc3 {[%emt 0:01:00]} Nc6 {[%emt 0:00:07]} 3. Nf3 {[%emt 0:01:08]} Nf6 {[%emt 0:00:08]} 4. d3 {[%emt 0:01:25]} Bc5 {[%emt 0:01:59]} 5. Be2 {[%emt 0:01:07]} d6 {[%emt 0:00:53]} 6. O-O {[%emt 0:01:08]} a5 {[%emt 0:01:21]} 7. Bg5 {[%emt 0:05:02]} h6 {[%emt 0:01:48]} 8. Bxf6 {[%emt 0:01:04]} Qxf6 {[%emt 0:00:31]} 9. Nd5 {[%emt 0:02:31]} Qd8 {[%emt 0:00:14]} 10. c3 {[%emt 0:05:06]} O-O {[%emt 0:07:13]} 11. Ne3 {[%emt 0:14:20]} Re8 {[%emt 0:04:23]} 12. Qd2 {[%emt 0:03:30]} Ba7 {[%emt 0:04:24]} 13. Bd1 {[%emt 0:05:04]} Ne7 {[%emt 0:02:32]} 14. Re1 {[%emt 0:04:37]} Ng6 {[%emt 0:06:08]} 15. a4 {[%emt 0:02:29]} h5 {[%emt 0:04:51]} 16. Bb3 {[%emt 0:01:53]} c6 {[%emt 0:05:02]} 17. Bc2 {[%emt 0:05:04]} Qf6 {[%emt 0:01:58]} 18. Bd1 {[%emt 0:04:15]} h4 {[%emt 0:00:45]} 19. g3 {[%emt 0:00:24]} Kh7 {[%emt 0:03:21]} 20. Ng2 {[%emt 0:01:00]} hxg3 {[%emt 0:00:11]} 21. Ng5+ {[%emt 0:00:16]} Kg8 {[%emt 0:00:10]} 22. hxg3 {[%emt 0:00:34]} Bxf2+ {[%emt 0:00:29]} 23. Qxf2 {[%emt 0:00:02]} Qxg5 {[%emt 0:00:10]} 24. Qe3 {[%emt 0:00:07]} Qxe3+ {[%emt 0:01:30]} 25. Nxe3 {[%emt 0:00:04]} Be6 {[%emt 0:00:58]} 26. b4 {[%emt 0:00:42]} Ne7 {[%emt 0:03:04]} 27. Rb1 {[%emt 0:00:44]} axb4 {[%emt 0:01:37]} 28. Rxb4 {[%emt 0:00:12]} Ra7 {[%emt 0:00:31]} 29. Bc2 {[%emt 0:00:33]} c5 {[%emt 0:01:59]} 30. Rb2 {[%emt 0:00:04]} f5 {[%emt 0:00:54]} 31. Reb1 {[%emt 0:00:19]} Rb8 {[%emt 0:00:25]} 32. a5 {[%emt 0:01:23]} fxe4 {[%emt 0:01:18]} 33. dxe4 {[%emt 0:00:03]} Nc6 {[%emt 0:04:11]} 34. Rb6 {[%emt 0:02:28]} Rd8 {[%emt 0:03:28]} 35. Rxb7 {[%emt 0:01:01]} Rxb7 {[%emt 0:00:02]} 36. Rxb7 {[%emt 0:00:20]} Nxa5 {[%emt 0:00:04]} 37. Re7 {[%emt 0:01:23]} Bd7 {[%emt 0:03:06]} 38. Nd5 {[%emt 0:01:08]} Nc6 {[%emt 0:00:55]} 39. Rxd7 {[%emt 0:00:31]} Rxd7 {[%emt 0:00:28]} 40. Ba4 {[%emt 0:00:00]} Nb8 {[%emt 0:00:00]} 41. Bxd7 {[%emt 0:00:39]} Nxd7 {[%emt 0:00:13]} 42. Ne7+ {[%emt 0:00:13]} Kf7 {[%emt 0:01:03]} 43. Nf5 {[%emt 0:00:05]} Nf6 {[%emt 0:00:49]} 44. Nxd6+ {[%emt 0:00:44]} Ke6 {[%emt 0:00:45]} 45. Nb7 {[%emt 0:01:24]} Nxe4 {[%emt 0:00:31]} 46. c4 {[%emt 0:00:44]} Kd7 {[%emt 0:01:41]} 47. Kg2 {[%emt 0:00:15]} Kc7 {[%emt 0:01:01]} 48. Na5 {[%emt 0:00:14]} Nd2 {[%emt 0:00:19]} 49. Kf2 {[%emt 0:00:25]} 0-1